bitfinex-derivatives/quotes_BTCF0:USTF0_20241021
["timestamp","ask_amount","ask_price","bid_price","bid_amount"]
[1729538951379,0.073941,67638.0,67637.0,0.13232719]
[1729538951779,0.01222504,67640.0,67639.0,0.07394]
[1729538951979,0.08616404,67640.0,67639.0,0.07394]
[1729538953189,0.08616404,67640.0,67639.0,0.07494]
[1729538953676,0.08616404,67640.0,67639.0,0.07594]
[1729538954274,0.08616404,67640.0,67639.0,0.002]
[1729538954475,0.13244161,67640.0,67639.0,0.002]
[1729538954879,0.08616404,67640.0,67639.0,0.002]
[1729538955076,0.13242938,67640.0,67639.0,0.002]
[1729538955481,0.08616404,67640.0,67639.0,0.07594]
[1729538955683,0.01222504,67640.0,67639.0,0.07594]
[1729538955876,0.08616404,67640.0,67639.0,0.07594]
[1729538957084,0.13248143,67640.0,67639.0,0.07594]
[1729538957778,0.08616404,67640.0,67639.0,0.07594]
[1729538958284,0.01222504,67640.0,67639.0,0.07594]
[1729538959976,0.08616404,67640.0,67639.0,0.07594]
[1729538961990,0.44696404,67640.0,67639.0,0.07594]
[1729538962185,0.44696404,67640.0,67639.0,0.13439058]
[1729538963496,0.44696404,67640.0,67639.0,0.07594]
[1729538965590,0.44696404,67640.0,67639.0,0.13439058]
[1729538966096,0.44696404,67640.0,67639.0,0.07594]
[1729538966804,0.37302504,67640.0,67639.0,0.07594]
[1729538967102,0.44696404,67640.0,67639.0,0.07594]
[1729538967287,0.08616404,67640.0,67639.0,0.07594]
[1729538967801,0.01222504,67640.0,67639.0,0.07594]
[1729538970601,0.01222504,67640.0,67639.0,0.43674]
[1729538971206,0.05882438,67640.0,67639.0,0.43674]
[1729538972105,0.41962438,67640.0,67639.0,0.07594]
[1729538972801,0.01222504,67640.0,67639.0,0.43674]
[1729538973005,0.01222504,67640.0,67639.0,0.79754]
[1729538973411,0.01222504,67640.0,67639.0,0.43674]
[1729538979599,0.08616404,67640.0,67639.0,0.43674]
[1729538979797,0.08616404,67640.0,67639.0,0.07594]
[1729538980398,0.08616404,67640.0,67639.0,0.13429911]
[1729538980598,0.08616404,67640.0,67639.0,0.07594]
[1729538985609,0.073928,67651.0,67639.0,0.07594]
[1729538985610,0.0401,67659.0,67651.0,0.073927]
[1729538985797,0.0401,67659.0,67651.0,0.434727]
[1729538985994,0.0422,67663.0,67652.0,0.073926]
[1729538986199,0.04756452,67662.0,67657.0,0.3608]
[1729538986412,0.01316307,67667.0,67657.0,0.3608]
[1729538986413,0.01086653,67664.0,67657.0,0.3608]
[1729538986608,0.073913,67664.0,67663.0,0.073914]
[1729538989007,0.04746211,67664.0,67654.0,0.01105856]
[1729538989213,0.073921,67657.0,67656.0,0.073919]
[1729538989998,0.434721,67657.0,67656.0,0.073919]
[1729538990320,0.3608,67657.0,67648.0,0.04377097]
[1729538990608,0.3608,67657.0,67638.0,0.07307047]
[1729538990609,0.073932,67646.0,67645.0,0.00221681]
[1729538992004,0.073932,67646.0,67645.0,0.01521681]
[1729538992611,0.073932,67646.0,67645.0,0.00621681]
[1729538993016,0.073932,67646.0,67645.0,0.01021681]
[1729538994110,0.073932,67646.0,67645.0,0.00921681]
[1729538995417,0.073932,67646.0,67645.0,0.00721681]
[1729538995919,0.073932,67646.0,67645.0,0.00321681]
[1729538996114,0.073932,67646.0,67645.0,0.00521681]
[1729539000615,0.434732,67646.0,67645.0,0.00521681]
[1729539001011,0.434732,67646.0,67625.0,0.04377097]
[1729539001012,0.3608,67646.0,67625.0,0.04377097]
[1729539001217,0.073952,67631.0,67630.0,0.073949]
[1729539001416,0.073953,67628.0,67627.0,0.073951]
[1729539003017,0.073953,67628.0,67627.0,0.082951]
[1729539003915,0.073953,67628.0,67627.0,0.090951]
[1729539005330,0.073953,67628.0,67627.0,0.18373478]
[1729539006023,0.073953,67628.0,67627.0,0.017]
[1729539008122,0.073953,67628.0,67627.0,0.07525059]
[1729539008326,0.073953,67628.0,67627.0,0.017]
[1729539009332,0.073953,67628.0,67627.0,0.07525059]
[1729539010230,0.073953,67628.0,67627.0,0.017]
[1729539014029,0.073953,67628.0,67627.0,0.06063716]
[1729539014231,0.073953,67628.0,67627.0,0.13459016]
[1729539015052,0.073953,67628.0,67627.0,0.06063716]
[1729539015641,0.073953,67628.0,67627.0,0.017]
[1729539016041,0.073953,67628.0,67627.0,0.06063716]
[1729539016237,0.073954,67626.0,67625.0,0.12316059]
[1729539016539,0.073954,67626.0,67625.0,0.073955]
[1729539016739,0.3608,67626.0,67625.0,0.073955]
[1729539017430,0.434754,67626.0,67625.0,0.073955]
[1729539017638,0.434754,67626.0,67625.0,0.083955]
[1729539017944,0.435754,67626.0,67625.0,0.093955]
[1729539018637,0.074954,67626.0,67625.0,0.093955]
[1729539018834,0.435754,67626.0,67625.0,0.093955]
[1729539021439,0.074954,67626.0,67625.0,0.093955]
[1729539023341,0.001,67626.0,67625.0,0.093955]
[1729539023735,0.0814,67648.0,67640.0,0.073938]
[1729539023736,0.07394,67641.0,67640.0,0.073938]
[1729539023945,0.3608,67644.0,67641.0,0.073938]
[1729539024244,0.07615539,67642.0,67641.0,0.073938]
[1729539025146,0.08015539,67642.0,67641.0,0.074938]
[1729539025852,0.08615539,67642.0,67641.0,0.074938]
[1729539027846,0.08615539,67642.0,67641.0,0.001]
[1729539030347,0.08615539,67642.0,67641.0,0.01218014]
[1729539030550,0.08615539,67642.0,67641.0,0.001]
[1729539032050,0.08615539,67642.0,67630.0,0.01085602]
[1729539032051,0.01221839,67642.0,67630.0,0.01085602]
[1729539032244,0.073949,67631.0,67630.0,0.073948]
[1729539034346,0.073949,67631.0,67630.0,0.078948]
[1729539034547,0.073949,67631.0,67630.0,0.083948]
[1729539035046,0.073949,67633.0,67632.0,0.073946]
[1729539035446,0.073949,67633.0,67632.0,0.16561903]
[1729539037158,0.073949,67633.0,67632.0,0.16861903]
[1729539037343,0.073949,67633.0,67632.0,0.17161903]
[1729539038353,0.3608,67638.0,67632.0,0.09773977]
[1729539038544,0.073932,67646.0,67632.0,0.09773977]
[1729539038545,0.073938,67641.0,67640.0,0.073938]
[1729539039441,0.073938,67641.0,67640.0,0.18539234]
[1729539040256,0.078938,67641.0,67640.0,0.18539234]
[1729539040853,0.083938,67641.0,67640.0,0.18539234]
[1729539041049,0.083938,67641.0,67640.0,0.112538]
[1729539044253,0.083938,67641.0,67640.0,0.12376218]
[1729539044651,0.083938,67641.0,67640.0,0.04982418]
[1729539044961,0.083938,67641.0,67640.0,0.01122418]
[1729539045256,0.07394,67639.0,67638.0,0.115941]
[1729539046054,0.07394,67639.0,67638.0,0.12705054]
[1729539046451,0.07394,67639.0,67638.0,0.05310954]
[1729539046751,0.07994,67639.0,67638.0,0.01110954]
[1729539046948,0.006,67639.0,67630.0,0.0836]
[1729539047155,0.073949,67634.0,67633.0,0.073946]
[1729539049654,0.073949,67634.0,67633.0,0.075946]
[1729539049859,0.073949,67634.0,67633.0,0.077946]
[1729539050159,0.073949,67634.0,67633.0,0.004]
[1729539050359,0.073949,67634.0,67623.0,0.073954]
[1729539050360,0.073957,67624.0,67623.0,0.073954]
[1729539050554,0.073957,67624.0,67623.0,0.27568916]
[1729539050755,0.073957,67624.0,67623.0,0.16598807]
[1729539051354,0.073957,67624.0,67623.0,0.52689817]
[1729539051555,0.073952,67630.0,67629.0,0.07395]
[1729539051861,0.073952,67630.0,67629.0,0.16609417]
[1729539052057,0.3608,67639.0,67634.0,0.073945]
[1729539052251,0.073948,67635.0,67634.0,0.073945]
[1729539053157,0.073948,67635.0,67634.0,0.14693604]
[1729539053355,0.073948,67635.0,67634.0,0.073945]
[1729539053552,0.073945,67634.0,67633.0,0.07299104]
[1729539053857,0.073945,67634.0,67633.0,0.23891372]
[1729539054265,0.073945,67634.0,67633.0,0.16592268]
[1729539054852,0.073945,67634.0,67633.0,0.23894638]
[1729539055260,0.073945,67634.0,67633.0,0.23994638]
[1729539055564,0.073945,67634.0,67633.0,0.16692268]
[1729539055756,0.073945,67634.0,67633.0,0.076946]
[1729539057061,0.073945,67634.0,67633.0,0.16898762]
[1729539057451,0.073945,67634.0,67633.0,0.076946]
[1729539058361,0.073945,67634.0,67633.0,0.003]
[1729539058666,0.073945,67634.0,67625.0,0.073954]
[1729539058860,0.073945,67634.0,67618.0,0.073962]
[1729539058861,0.3608,67629.0,67618.0,0.073963]
[1729539059058,0.3608,67629.0,67617.0,0.0392]
[1729539059059,0.3608,67622.0,67617.0,0.0392]
[1729539059255,0.3608,67622.0,67613.0,0.00221839]
[1729539059256,0.073965,67617.0,67616.0,0.073965]
[1729539060256,0.073967,67614.0,67613.0,0.00221839]
[1729539060459,0.434767,67614.0,67613.0,0.00221839]
[1729539060654,0.3608,67614.0,67608.0,0.073973]
[1729539060859,0.073973,67609.0,67608.0,0.073973]
[1729539063661,0.074973,67609.0,67608.0,0.087973]
[1729539064165,0.002,67609.0,67608.0,0.101973]
[1729539065475,0.002,67609.0,67608.0,0.19447792]
[1729539070363,0.075973,67609.0,67608.0,0.12050492]
[1729539070567,0.075973,67609.0,67608.0,0.028]
[1729539076970,0.075973,67609.0,67608.0,0.101974]
[1729539079070,0.075973,67609.0,67608.0,0.028]
[1729539080478,0.073978,67604.0,67603.0,0.01115028]
[1729539080684,0.073985,67598.0,67597.0,0.073985]
[1729539080869,0.07398,67602.0,67596.0,0.07288395]
[1729539081075,0.073985,67598.0,67597.0,0.07288443]
[1729539081477,0.073986,67597.0,67596.0,0.07288443]
[1729539081787,0.07398,67602.0,67596.0,0.0931246]
[1729539081987,0.073985,67598.0,67597.0,0.1659621]
[1729539082170,0.073985,67598.0,67597.0,0.09308353]
[1729539082483,0.001,67604.0,67600.0,0.073981]
[1729539082484,0.073983,67601.0,67600.0,0.073981]
[1729539082678,0.073983,67601.0,67600.0,0.1468623]
[1729539082872,0.073983,67601.0,67600.0,0.16578129]
[1729539083072,0.073984,67599.0,67598.0,0.1468653]
[1729539083275,0.073984,67599.0,67598.0,0.16703102]
[1729539083675,0.073984,67599.0,67598.0,0.2399272]
[1729539084175,0.073984,67599.0,67598.0,0.16714909]
[1729539084981,0.073984,67599.0,67598.0,0.073984]
[1729539085182,0.073984,67599.0,67598.0,0.24009212]
[1729539085976,0.074984,67599.0,67598.0,0.14689565]
[1729539086183,0.075984,67599.0,67598.0,0.17317509]
[1729539086983,0.002,67599.0,67598.0,0.17317509]
[1729539087983,0.002,67599.0,67598.0,0.28406745]
[1729539088379,0.075984,67599.0,67598.0,0.28406745]
[1729539088576,0.002,67599.0,67598.0,0.28406745]
[1729539089383,0.3608,67603.0,67598.0,0.21008345]
[1729539089587,0.3608,67603.0,67599.0,0.20408345]
[1729539089777,0.073983,67600.0,67599.0,0.073981]
[1729539090104,0.073983,67600.0,67599.0,0.27729321]
[1729539090883,0.073983,67600.0,67599.0,0.64409321]
[1729539091485,0.074983,67600.0,67599.0,0.64609321]
[1729539092490,0.074983,67600.0,67599.0,0.64009321]
[1729539092791,0.075983,67600.0,67599.0,0.64709321]
[1729539095196,0.075983,67600.0,67599.0,0.64701259]
[1729539095676,0.075983,67600.0,67599.0,0.62416909]
[1729539095880,0.075983,67600.0,67599.0,0.53649776]
[1729539096084,0.075983,67600.0,67599.0,0.62416909]
[1729539096489,0.075983,67600.0,67599.0,0.53649776]
[1729539096785,0.002,67600.0,67599.0,0.53649776]
[1729539097792,0.002,67600.0,67599.0,0.6241993]
[1729539097994,0.002,67600.0,67599.0,0.53649776]
[1729539098489,0.002,67600.0,67599.0,0.62421272]
[1729539099380,0.002,67600.0,67599.0,0.62422909]
[1729539099583,0.002,67600.0,67599.0,0.62423138]
[1729539101383,0.002,67600.0,67599.0,0.62424929]
[1729539101587,0.002,67600.0,67599.0,0.53649776]
[1729539101790,0.075982,67600.0,67599.0,0.53649776]
[1729539102696,0.075982,67600.0,67599.0,0.28626433]
[1729539102884,0.075982,67600.0,67599.0,0.17569776]
[1729539104594,0.075982,67600.0,67599.0,0.28631959]
[1729539104787,0.002,67600.0,67599.0,0.28631959]
[1729539105288,0.002,67600.0,67599.0,0.28582319]
[1729539107086,0.073981,67602.0,67599.0,0.28582319]
[1729539107287,0.073981,67602.0,67601.0,0.073981]
[1729539107586,0.073974,67608.0,67607.0,0.073974]
[1729539107786,0.073974,67608.0,67607.0,0.18040341]
[1729539108493,0.073974,67608.0,67607.0,0.0926337]
[1729539108693,0.434774,67608.0,67607.0,0.0926337]
[1729539109196,0.435774,67608.0,67607.0,0.0996337]
[1729539110100,0.435774,67608.0,67607.0,0.1736087]
[1729539110294,0.075974,67608.0,67607.0,0.1777418]
[1729539110686,0.075974,67608.0,67607.0,0.084975]
[1729539112202,0.436774,67608.0,67607.0,0.084975]
[1729539112498,0.075974,67608.0,67607.0,0.084975]
[1729539113106,0.436774,67608.0,67607.0,0.084975]
[1729539113598,0.075974,67608.0,67607.0,0.09375147]
[1729539114487,0.436774,67608.0,67607.0,0.09375147]
[1729539114896,0.075974,67608.0,67607.0,0.09375147]
[1729539115098,0.436774,67608.0,67607.0,0.09375147]
[1729539116796,0.075974,67608.0,67607.0,0.09375147]
[1729539117703,0.075974,67608.0,67607.0,0.18639941]
[1729539117903,0.436774,67608.0,67607.0,0.18639941]
[1729539118894,0.436774,67608.0,67607.0,0.10364794]
[1729539120392,0.436774,67608.0,67607.0,0.10391774]
[1729539121398,0.3628,67608.0,67594.0,0.00221899]
[1729539121598,0.434787,67596.0,67595.0,0.11075405]
[1729539121798,0.434787,67596.0,67595.0,0.18474205]
[1729539122399,0.434787,67596.0,67595.0,0.073988]
[1729539122599,0.434787,67596.0,67595.0,0.18347248]
[1729539123105,0.434787,67596.0,67595.0,0.18345201]
[1729539123308,0.434787,67596.0,67595.0,0.18341915]
[1729539123501,0.434787,67596.0,67595.0,0.073988]
[1729539123702,0.073987,67596.0,67595.0,0.18344148]
[1729539124309,0.074987,67596.0,67595.0,0.18444148]
[1729539124506,0.074987,67596.0,67595.0,0.074988]
[1729539124507,0.075987,67596.0,67595.0,0.074988]
[1729539125114,0.075987,67596.0,67595.0,0.18429721]
[1729539132811,0.075987,67596.0,67595.0,0.074988]
[1729539134511,0.002,67596.0,67595.0,0.074988]
[1729539135005,0.002,67596.0,67595.0,0.116088]
[1729539135206,0.002,67596.0,67595.0,0.22486669]
[1729539135703,0.002,67596.0,67595.0,0.116088]
[1729539135907,0.002,67596.0,67595.0,0.22498545]
[1729539136111,0.002,67596.0,67595.0,0.116088]
[1729539136506,0.002,67596.0,67595.0,0.20747397]
[1729539136714,0.002,67596.0,67595.0,0.31638674]
[1729539137016,0.002,67596.0,67595.0,0.20747397]
[1729539138106,0.073973,67609.0,67608.0,0.073971]
[1729539138415,0.073973,67609.0,67608.0,0.1651067]
[1729539139510,0.078973,67609.0,67608.0,0.1651067]
[1729539140415,0.084973,67609.0,67608.0,0.1651067]
[1729539140820,0.084973,67609.0,67608.0,0.27347499]
[1729539141008,0.084973,67609.0,67608.0,0.19950399]
[1729539141210,0.084973,67609.0,67608.0,0.0911357]
[1729539141822,0.084973,67609.0,67608.0,0.1651097]
[1729539142319,0.084973,67609.0,67608.0,0.25278078]
[1729539143708,0.084973,67609.0,67608.0,0.17880678]
[1729539144110,0.084973,67609.0,67608.0,0.0911357]
[1729539144918,0.084973,67609.0,67608.0,0.27370971]
[1729539145217,0.084973,67609.0,67608.0,0.073974]
[1729539145620,0.011,67609.0,67608.0,0.073974]
[1729539145820,0.084973,67609.0,67608.0,0.073974]
[1729539146416,0.084973,67609.0,67608.0,0.0827647]
[1729539146613,0.084973,67609.0,67608.0,0.28219197]
[1729539147017,0.084973,67609.0,67608.0,0.1737556]
[1729539147923,0.084973,67609.0,67608.0,0.0827647]
[1729539152119,0.084973,67609.0,67608.0,0.12656505]
[1729539152419,0.084973,67609.0,67608.0,0.0827647]
[1729539152613,0.084973,67609.0,67608.0,0.4435647]
[1729539152820,0.084973,67609.0,67608.0,0.0827647]
[1729539153428,0.084973,67609.0,67608.0,0.12656505]
[1729539153622,0.084973,67609.0,67608.0,0.0827647]
[1729539153823,0.084973,67609.0,67608.0,0.12656695]
[1729539154329,0.084973,67609.0,67608.0,0.0827647]
[1729539155327,0.084973,67609.0,67608.0,0.12658199]
[1729539155822,0.084973,67609.0,67608.0,0.17377105]
[1729539156930,0.084973,67609.0,67605.0,0.0730614]
[1729539156931,0.445773,67609.0,67605.0,0.0730614]
[1729539157131,0.073982,67600.0,67599.0,0.04997802]
[1729539157432,0.073997,67587.0,67586.0,0.00903356]
[1729539157620,0.073997,67587.0,67582.0,0.07418673]
[1729539157621,0.074001,67583.0,67582.0,0.00018473]
[1729539158127,0.074001,67583.0,67582.0,0.0048129]
[1729539158331,0.074001,67583.0,67582.0,0.00018473]
[1729539158929,0.074001,67583.0,67582.0,0.00481304]
[1729539159126,0.075001,67583.0,67582.0,0.00118473]
[1729539159328,0.075001,67583.0,67582.0,0.01024255]
[1729539159528,0.075001,67583.0,67582.0,0.00118473]
[1729539159728,0.074001,67583.0,67582.0,0.00018473]
[1729539159933,0.17383446,67586.0,67582.0,0.00118473]
[1729539159934,0.1648,67586.0,67582.0,0.00118473]
[1729539160135,0.3608,67585.0,67582.0,0.00118473]
[1729539160430,0.434799,67585.0,67582.0,0.00118473]
[1729539160627,0.001,67583.0,67582.0,0.00118473]
[1729539160830,0.001,67583.0,67582.0,0.07518673]
[1729539161136,0.073999,67585.0,67582.0,0.07981465]
[1729539161330,0.073999,67585.0,67583.0,0.00462792]
[1729539161536,0.073999,67585.0,67584.0,0.00462792]
[1729539163331,0.076999,67585.0,67584.0,0.00462792]
[1729539164841,0.078999,67585.0,67584.0,0.00462792]
[1729539165242,0.005,67585.0,67582.0,0.00907785]
[1729539165438,0.074001,67583.0,67582.0,0.00907785]
[1729539167051,0.075001,67583.0,67582.0,0.00889312]
[1729539167339,0.075001,67583.0,67577.0,0.0408]
[1729539167340,0.074007,67578.0,67577.0,0.0408]
[1729539167544,0.074007,67578.0,67577.0,0.04542796]
[1729539168538,0.074007,67578.0,67577.0,0.04997394]
[1729539168732,0.074007,67578.0,67577.0,0.01380213]
[1729539168733,0.075007,67578.0,67577.0,0.01380213]
[1729539169043,0.075007,67578.0,67561.0,0.3608]
[1729539169044,0.074022,67565.0,67564.0,0.074022]
[1729539169346,0.074023,67563.0,67562.0,0.0408]
[1729539169546,0.074023,67563.0,67562.0,0.114824]
[1729539169944,0.074023,67563.0,67562.0,0.12391975]
[1729539171231,0.001,67565.0,67564.0,0.074022]
[1729539171232,0.075021,67565.0,67564.0,0.074022]
[1729539171631,0.076021,67565.0,67564.0,0.074022]
[1729539171837,0.002,67565.0,67564.0,0.074022]
[1729539172039,0.12778046,67577.0,67563.0,0.3608]
[1729539172539,0.12778046,67577.0,67569.0,0.074015]
[1729539172734,0.074015,67571.0,67570.0,0.0409]
[1729539173744,0.074018,67568.0,67567.0,0.074018]
[1729539174042,0.48636,67575.0,67564.0,0.0409]
[1729539174247,0.074021,67565.0,67564.0,0.0409]
[1729539174441,0.074021,67565.0,67562.0,0.04989575]
[1729539174639,0.074023,67563.0,67562.0,0.04989575]
[1729539175045,0.074023,67563.0,67541.0,0.074046]
[1729539175046,0.074035,67553.0,67552.0,0.074034]
[1729539175243,0.074038,67549.0,67542.0,0.0791]
[1729539175540,0.074045,67543.0,67542.0,0.0791]
[1729539176248,0.074045,67543.0,67542.0,0.153146]
[1729539176548,0.074045,67543.0,67542.0,0.16206377]
[1729539177749,0.075045,67543.0,67542.0,0.16306377]
[1729539178148,0.076045,67543.0,67542.0,0.08901777]
[1729539178838,0.076045,67543.0,67542.0,0.16306377]
[1729539179240,0.076045,67543.0,67542.0,0.08901777]
[1729539179940,0.076045,67543.0,67542.0,0.16306377]
[1729539180153,0.002,67543.0,67542.0,0.16306377]
[1729539181153,0.074035,67553.0,67552.0,0.074035]
[1729539181448,0.074031,67556.0,67555.0,0.07403]
[1729539181755,0.074025,67561.0,67557.0,0.07403]
[1729539182143,0.3608,67568.0,67557.0,0.07403]
[1729539182347,0.074026,67560.0,67557.0,0.07403]
[1729539182757,0.4864,67568.0,67557.0,0.07403]
[1729539182958,0.3608,67568.0,67556.0,0.0403]
[1729539183262,0.074028,67561.0,67560.0,0.074025]
[1729539183558,0.3608,67568.0,67557.0,0.07403]
[1729539183559,0.001,67558.0,67557.0,0.07403]
[1729539183851,0.075028,67558.0,67557.0,0.07403]
[1729539184048,0.076028,67558.0,67557.0,0.07603]
[1729539184361,0.076028,67558.0,67557.0,0.002]
[1729539184655,0.076028,67558.0,67557.0,0.07603]
[1729539184856,0.075028,67558.0,67557.0,0.07603]
[1729539185660,0.076028,67558.0,67557.0,0.07803]
[1729539186349,0.076028,67558.0,67557.0,0.11443]
[1729539186553,0.076028,67558.0,67557.0,0.04939869]
[1729539186748,0.002,67558.0,67557.0,0.04939869]
[1729539186952,0.002,67558.0,67557.0,0.48422869]
[1729539187544,0.07402,67566.0,67564.0,0.074021]
[1729539187749,0.074017,67569.0,67567.0,0.074018]
[1729539187955,0.00212,67574.0,67564.0,0.3608]
[1729539188256,0.074014,67571.0,67570.0,0.074015]
[1729539189252,0.074014,67571.0,67567.0,0.001]
[1729539189253,0.004,67571.0,67567.0,0.001]
[1729539189463,0.434818,67568.0,67567.0,0.001]
[1729539190356,0.434818,67568.0,67567.0,0.075019]
[1729539190544,0.434818,67568.0,67567.0,0.074019]
[1729539191152,0.074018,67568.0,67567.0,0.074019]
[1729539191457,0.074018,67568.0,67567.0,0.075019]
[1729539191962,0.075018,67568.0,67567.0,0.075019]
[1729539195855,0.075018,67568.0,67567.0,0.14801258]
[1729539196053,0.075018,67568.0,67567.0,0.15264108]
[1729539196252,0.075018,67568.0,67567.0,0.0796475]
[1729539196758,0.075018,67568.0,67567.0,0.14801258]
[1729539197155,0.075018,67568.0,67567.0,0.075019]
[1729539197755,0.075018,67568.0,67567.0,0.14801258]
[1729539198156,0.075018,67568.0,67567.0,0.24033454]
[1729539198464,0.075018,67568.0,67567.0,0.24031003]
[1729539199055,0.075018,67568.0,67567.0,0.24042509]
[1729539199454,0.075018,67568.0,67567.0,0.16272113]
[1729539199661,0.075018,67568.0,67567.0,0.1527551]
[1729539199861,0.075018,67568.0,67567.0,0.0796476]
[1729539200862,0.435818,67568.0,67567.0,0.0056286]
[1729539201163,0.074023,67563.0,67558.0,0.0731075]
[1729539201363,0.074026,67560.0,67559.0,0.00462947]
[1729539202366,0.074023,67563.0,67557.0,0.04552969]
[1729539202566,0.074028,67558.0,67557.0,0.04552969]
[1729539202764,0.074028,67558.0,67557.0,0.05015932]
[1729539202973,0.074028,67558.0,67557.0,0.05478895]
[1729539203659,0.074028,67558.0,67557.0,0.05678895]
[1729539204369,0.075028,67558.0,67557.0,0.05678895]
[1729539205067,0.076028,67558.0,67557.0,0.05878895]
[1729539206166,0.436828,67558.0,67557.0,0.05878895]
[1729539206563,0.436828,67558.0,67557.0,0.04952969]
[1729539206763,0.436828,67558.0,67557.0,0.05878915]
[1729539207365,0.436828,67558.0,67557.0,0.02238915]
[1729539207967,0.076028,67558.0,67557.0,0.02238915]
[1729539208983,0.076028,67558.0,67557.0,0.11085644]
[1729539209678,0.076028,67558.0,67552.0,0.08783541]
[1729539209679,0.074032,67555.0,67552.0,0.08783541]
[1729539209875,0.074032,67555.0,67534.0,0.11711388]
[1729539209876,0.074041,67547.0,67546.0,0.09696452]
[1729539210196,0.074043,67545.0,67541.0,0.07329639]
[1729539210371,0.3608,67542.0,67540.0,0.07329639]
[1729539210570,0.3608,67542.0,67537.0,0.0379]
[1729539210571,0.3608,67542.0,67537.0,0.11119639]
[1729539210770,0.07405,67538.0,67537.0,0.12040373]
[1729539211269,0.07405,67538.0,67537.0,0.04710734]
[1729539211784,0.07405,67538.0,67537.0,0.04910734]
[1729539212672,0.07405,67538.0,67537.0,0.12229037]
[1729539212872,0.07405,67538.0,67537.0,0.12029037]
[1729539213068,0.07505,67538.0,67537.0,0.12229037]
[1729539213385,0.07605,67538.0,67537.0,0.12229037]
[1729539213675,0.07605,67538.0,67537.0,0.04910734]
[1729539216770,0.43685,67538.0,67537.0,0.04910734]
[1729539216977,0.43685,67538.0,67537.0,0.01120734]
[1729539217177,0.43685,67538.0,67537.0,0.002]
[1729539217474,0.07605,67538.0,67537.0,0.002]
[1729539218678,0.07505,67538.0,67537.0,0.002]
[1729539218883,0.43685,67538.0,67537.0,0.002]
[1729539219080,0.074058,67531.0,67530.0,0.00911488]
[1729539219388,0.43685,67538.0,67529.0,0.05848125]
[1729539219389,0.074059,67530.0,67529.0,0.05848125]
[1729539219576,0.07406,67529.0,67528.0,0.05848125]
[1729539220285,0.074061,67528.0,67527.0,0.05848125]
[1729539221485,0.074061,67528.0,67526.0,0.06768248]
[1729539221793,0.074061,67528.0,67527.0,0.06311284]
[1729539221974,0.074061,67528.0,67527.0,0.00463159]
[1729539222179,0.074061,67528.0,67527.0,0.01204221]
[1729539222787,0.075061,67528.0,67527.0,0.01204221]
[1729539223374,0.075061,67528.0,67526.0,0.074063]
[1729539223375,0.001,67528.0,67526.0,0.074063]
[1729539223580,0.075061,67528.0,67527.0,0.00463151]
[1729539224080,0.076061,67528.0,67527.0,0.00463151]
[1729539224390,0.076061,67528.0,67527.0,0.07869351]
[1729539224581,0.076061,67528.0,67527.0,0.08610372]
[1729539224887,0.002,67528.0,67527.0,0.08610372]
[1729539225681,0.002,67528.0,67527.0,0.07869351]
[1729539226587,0.3608,67542.0,67527.0,0.53764948]
[1729539226791,0.3608,67542.0,67541.0,0.074047]
[1729539226993,0.434846,67542.0,67541.0,0.074047]
[1729539227181,0.074049,67540.0,67538.0,0.13246394]
[1729539227385,0.074049,67540.0,67539.0,0.07867971]
[1729539227582,0.074049,67540.0,67539.0,0.13709365]
[1729539228285,0.075049,67540.0,67539.0,0.13709365]
[1729539228686,0.075049,67540.0,67539.0,0.07867971]
[1729539229589,0.075049,67540.0,67539.0,0.074049]
[1729539229786,0.075049,67540.0,67539.0,0.07867973]
[1729539230490,0.076049,67540.0,67539.0,0.08067973]
[1729539231181,0.076049,67540.0,67539.0,0.08975293]
[1729539231392,0.002,67540.0,67539.0,0.08975293]
[1729539233394,0.002,67540.0,67539.0,0.0851222]
[1729539233595,0.002,67540.0,67539.0,0.08975313]
[1729539234092,0.076048,67540.0,67539.0,0.17857498]
[1729539237105,0.076048,67540.0,67539.0,0.17857478]
[1729539237995,0.076048,67540.0,67539.0,0.53937478]
[1729539238191,0.076048,67540.0,67539.0,0.26641019]
[1729539238392,0.076048,67540.0,67539.0,0.17857478]
[1729539238706,0.076048,67540.0,67539.0,0.26641019]
[1729539239090,0.076048,67540.0,67539.0,0.17857478]
[1729539239688,0.076048,67540.0,67539.0,0.26641019]
[1729539240399,0.076048,67540.0,67539.0,0.17857478]
[1729539240695,0.076048,67540.0,67539.0,0.17394405]
[1729539240903,0.076048,67540.0,67539.0,0.17857482]
[1729539241203,0.076048,67540.0,67539.0,0.26663138]
[1729539241501,0.076048,67540.0,67539.0,0.26663202]
[1729539241701,0.076048,67540.0,67539.0,0.26662907]
[1729539241895,0.076048,67540.0,67539.0,0.10452582]
[1729539242303,0.076048,67540.0,67539.0,0.17857482]
[1729539242506,0.076048,67540.0,67539.0,0.10462506]
[1729539242895,0.076048,67540.0,67539.0,0.17867406]
[1729539243598,0.076048,67540.0,67539.0,0.28470186]
[1729539243795,0.076048,67540.0,67539.0,0.19267688]
[1729539244001,0.076048,67540.0,67539.0,0.09555186]
[1729539247608,0.076048,67540.0,67539.0,0.09564575]
[1729539247805,0.076048,67540.0,67539.0,0.09101498]
[1729539247998,0.076048,67540.0,67539.0,0.09564585]
[1729539249701,0.076048,67540.0,67539.0,0.10305554]
[1729539250201,0.074053,67536.0,67521.0,0.074068]
[1729539250396,0.807,67540.0,67522.0,0.10616421]
[1729539250397,0.3608,67527.0,67522.0,0.10616421]
[1729539250603,0.3608,67527.0,67520.0,0.07407]
[1729539250913,0.074061,67529.0,67521.0,0.10637308]
[1729539251110,0.3608,67534.0,67523.0,0.3608]
[1729539251305,0.3608,67534.0,67524.0,0.10477976]
[1729539251516,0.002,67527.0,67525.0,0.10477976]
[1729539251704,0.002,67527.0,67526.0,0.17884376]
[1729539252317,0.001,67527.0,67526.0,0.17884376]
[1729539252610,0.3618,67534.0,67526.0,0.10477976]
[1729539252810,0.435855,67534.0,67533.0,0.074056]
[1729539253704,0.436855,67534.0,67533.0,0.074056]